bitfinex/quotes_ETHUSD_20251125
["timestamp","ask_amount","ask_price","bid_price","bid_amount"]
[1764074542392,0.002,2921.8,2921.7,1.05]
[1764074542797,0.22,2921.8,2921.7,1.05]
[1764074544123,0.22,2921.8,2921.7,4.47266488]
[1764074544322,0.2192,2921.8,2921.7,4.47266488]
[1764074545696,0.2192,2921.8,2921.7,7.51454574]
[1764074546407,0.0012,2921.8,2921.7,7.51454574]
[1764074546611,0.002,2922.1,2921.8,0.405504]
[1764074546931,0.002,2922.4,2922.3,0.505504]
[1764074547230,0.002,2922.7,2922.5,0.405504]
[1764074547390,0.002,2922.7,2922.4,0.72559411]
[1764074547391,0.002,2923.1,2923.0,6.18376172]
[1764074547591,0.002,2924.0,2923.8,0.4742]
[1764074547829,0.002,2924.0,2923.9,7.13376172]
[1764074548013,0.002,2924.2,2923.9,7.13376172]
[1764074548014,0.002,2924.2,2924.0,3.51997264]
[1764074548212,0.22,2924.1,2924.0,7.5118535]
[1764074548530,0.1902,2924.1,2924.0,4.87547664]
[1764074548835,0.1902,2924.1,2924.0,8.81953325]
[1764074549137,0.1902,2924.1,2924.0,4.87547664]
[1764074549298,0.1902,2924.1,2924.0,9.54512736]
[1764074549498,0.002,2924.2,2924.0,9.54512736]
[1764074549499,0.002,2924.2,2924.1,1.13109811]
[1764074549695,0.22,2924.2,2924.1,2.37629811]
[1764074549912,0.92229621,2927.0,2924.1,2.37629811]
[1764074550106,1.84274509,2927.4,2926.3,0.6694]
[1764074550107,4.06176077,2927.1,2926.3,0.6694]
[1764074550319,4.64857617,2927.8,2926.6,0.1]
[1764074550320,1.0271053,2926.9,2926.6,0.1]
[1764074550553,0.218,2926.8,2926.6,0.1]
[1764074550722,0.218,2926.8,2926.3,0.671]
[1764074550919,11.37225153,2927.7,2926.7,0.4742]
[1764074550920,7.50070102,2927.7,2926.7,0.4742]
[1764074551219,0.0133627,2927.9,2927.0,0.1]
[1764074551419,0.217,2927.6,2926.8,0.4758]
[1764074551621,0.217,2927.6,2927.3,0.1]
[1764074551838,0.217,2927.6,2927.5,0.6694]
[1764074552143,0.217,2927.6,2926.8,0.4758]
[1764074552144,3.63277788,2927.6,2927.0,0.1]
[1764074552345,0.217,2927.6,2927.0,0.1]
[1764074552546,3.41553974,2927.8,2927.5,0.4742]
[1764074552744,0.0133627,2927.9,2927.5,0.4742]
[1764074552745,0.217,2927.7,2927.5,0.4742]
[1764074552948,0.217,2927.7,2927.6,0.4742]
[1764074553160,0.217,2927.7,2926.9,7.02836011]
[1764074553161,0.217,2927.7,2926.9,3.61177602]
[1764074553342,0.217,2927.7,2927.6,0.4742]
[1764074553643,0.0133627,2927.9,2927.6,0.4742]
[1764074553644,0.0133627,2927.9,2927.8,0.1]
[1764074553821,0.2303627,2927.9,2927.8,1.05]
[1764074554747,0.2303627,2927.9,2927.8,0.4742]
[1764074554962,3.64577989,2927.9,2927.1,0.5758]
[1764074555245,3.64577989,2927.9,2927.8,0.4742]
[1764074555246,0.0133627,2927.9,2927.8,0.4742]
[1764074555445,0.0133627,2927.9,2927.0,0.4758]
[1764074555446,0.2303627,2927.9,2927.4,0.4758]
[1764074555614,3.64577989,2927.9,2927.0,0.4758]
[1764074555818,3.64577989,2927.9,2927.4,0.1]
[1764074556014,7.18980421,2927.9,2927.6,0.1]
[1764074556347,1.18149411,2927.8,2926.9,0.1952]
[1764074556517,1.18149411,2927.8,2926.6,0.4758]
[1764074556841,1.18149411,2927.8,2926.9,0.4758]
[1764074557042,0.217,2927.7,2926.9,0.4758]
[1764074557217,0.217,2927.7,2927.3,0.1]
[1764074557417,0.217,2927.7,2926.9,0.4758]
[1764074557418,0.6729,2927.7,2926.3,0.671]
[1764074557619,0.4559,2927.6,2926.5,0.1]
[1764074557825,1.1269,2927.6,2926.5,0.1]
[1764074558156,3.41588385,2927.5,2926.3,0.771]
[1764074558343,0.72559411,2927.4,2926.3,0.771]
[1764074558647,1.18149411,2927.4,2926.3,0.1952]
[1764074558843,0.4559,2927.3,2926.3,0.1952]
[1764074559347,0.4559,2927.3,2925.6,3.61329573]
[1764074559348,0.4702,2926.4,2925.6,0.1952]
[1764074559848,0.1895,2926.6,2925.7,0.60997985]
[1764074560062,0.217,2926.5,2926.0,0.1]
[1764074560225,0.217,2926.4,2926.1,0.671]
[1764074560437,0.217,2926.3,2926.1,0.671]
[1764074560731,0.217,2926.3,2926.2,0.4742]
[1764074561118,0.217,2926.3,2926.0,0.1]
[1764074561638,1.39659411,2926.6,2926.2,0.4742]
[1764074561856,0.217,2926.5,2926.3,0.1]
[1764074562022,0.217,2926.5,2926.3,0.5758]
[1764074562352,3.41651309,2927.0,2926.4,0.4742]
[1764074562565,0.94259411,2926.9,2926.6,0.4742]
[1764074562748,1.58799411,2926.9,2926.3,0.1]
[1764074563562,1.13209411,2926.9,2926.3,0.1]
[1764074563965,1.13209411,2926.9,2926.1,0.1952]
[1764074564128,0.4559,2926.8,2926.1,0.1952]
[1764074564323,6.83363514,2926.7,2926.1,0.1952]
[1764074564529,6.83363514,2926.7,2925.8,0.4758]
[1764074564530,10.25045271,2926.7,2925.8,0.5758]
[1764074564728,10.25045271,2926.7,2925.8,0.1]
[1764074564729,0.4559,2926.6,2925.8,0.1]
[1764074564940,0.4559,2926.6,2925.6,0.1952]
[1764074564941,0.4559,2926.6,2925.7,0.1]
[1764074566557,0.2806,2925.8,2925.3,0.1952]
[1764074566759,0.217,2925.7,2924.8,0.1]
[1764074566964,0.217,2925.7,2924.8,0.5758]
[1764074567865,0.72559411,2926.4,2925.7,0.1]
[1764074568068,0.1895,2926.7,2925.7,1.05]
[1764074568377,0.1895,2926.9,2925.7,1.05]
[1764074568378,3.63314322,2926.6,2926.0,0.1]
[1764074568675,4.14268149,2926.5,2926.2,0.1]
[1764074568973,4.14268149,2926.5,2926.1,0.1952]
[1764074569159,0.4559,2926.4,2925.7,0.1]
[1764074569757,7.55976887,2926.5,2925.8,0.1]
[1764074570494,0.78144131,2926.4,2925.6,0.1952]
[1764074570792,7.14901055,2926.3,2925.6,0.1952]
[1764074571095,3.41728462,2926.3,2925.8,0.1]
[1764074571271,0.31500871,2926.2,2925.8,0.1]
[1764074571472,0.217,2926.1,2925.9,0.4993]
[1764074571786,0.72559411,2926.6,2926.0,0.1]
[1764074571971,0.53199179,2926.5,2926.1,0.2906]
[1764074572172,0.53199179,2926.4,2926.2,0.1]
[1764074572387,0.31499179,2926.3,2926.2,0.1]
[1764074572591,0.31499179,2926.6,2926.5,0.1]
[1764074572780,0.53238147,2926.6,2926.5,0.1]
[1764074572979,0.53238147,2926.6,2926.5,1.0899]
[1764074573469,0.53238147,2926.6,2926.5,0.5906]
[1764074573804,0.53238147,2926.6,2926.5,0.4906]
[1764074574704,0.53238147,2926.6,2926.5,0.9899]
[1764074575092,0.31538147,2926.6,2926.5,1.0899]
[1764074575604,0.53238147,2926.6,2926.5,4.50695108]
[1764074576669,0.31538147,2926.6,2926.5,4.91245508]
[1764074576976,0.53238147,2926.6,2926.5,5.63804919]
[1764074577891,0.217,2926.6,2926.5,5.63804919]
[1764074578280,0.002,2927.7,2927.6,0.1]
[1764074578479,0.53722668,2927.7,2927.6,0.5693]
[1764074578680,0.53722668,2927.7,2927.6,4.46296718]
[1764074578913,0.53722668,2927.7,2927.6,5.59406529]
[1764074579096,0.53722668,2927.7,2927.6,1.77279411]
[1764074579276,0.53722668,2927.7,2927.6,5.59406529]
[1764074580179,0.53722668,2927.7,2927.6,5.18856129]
[1764074580576,0.53722668,2927.7,2927.6,5.59406529]
[1764074580826,0.53722668,2927.7,2927.6,5.18856129]
[1764074581377,0.002,2927.9,2927.7,1.13109811]
[1764074581578,3.41330093,2929.8,2927.7,1.13109811]
[1764074581579,0.218,2928.8,2928.4,0.4693]
[1764074581808,0.218,2928.8,2928.3,0.405504]
[1764074581809,0.4959,2930.4,2929.8,0.1]
[1764074582033,0.218,2930.3,2929.8,0.1]
[1764074582376,0.3693,2929.9,2928.9,0.4779]
[1764074582577,0.1929,2929.9,2928.9,0.1]
[1764074582817,0.4959,2930.2,2929.2,0.1]
[1764074582985,4.63424634,2930.2,2929.0,0.4779]
[1764074583314,4.63424634,2930.2,2929.2,0.1]
[1764074583315,0.4959,2930.1,2929.2,0.1]
[1764074583654,0.4959,2930.1,2929.1,0.4779]
[1764074583813,0.218,2930.3,2929.5,0.1]
[1764074584019,0.218,2930.3,2929.8,0.1]
[1764074584191,0.4959,2930.4,2929.8,0.1]
[1764074584396,0.218,2930.3,2929.7,0.1]
[1764074584590,0.218,2930.3,2929.2,0.4779]
[1764074584591,0.94359411,2930.3,2928.8,4.07254715]
[1764074584791,0.72559411,2930.1,2928.9,0.1]
[1764074585106,0.72559411,2930.1,2929.2,0.1]
[1764074585309,0.72559411,2930.1,2929.1,0.1]
[1764074585310,0.4959,2930.0,2929.1,0.1]
[1764074585500,0.4959,2930.0,2928.8,4.89814774]
[1764074585693,0.124,2929.9,2928.8,0.90589411]
[1764074585922,0.124,2929.9,2929.1,0.1]
[1764074586106,0.4959,2929.8,2929.1,0.1]
[1764074586305,0.4959,2929.8,2929.0,0.1]
[1764074586507,0.4959,2929.8,2928.8,0.1]
[1764074586684,3.41331876,2929.7,2928.9,3.41425108]
[1764074586892,0.218,2929.6,2928.9,3.41425108]
[1764074587089,0.6199,2929.9,2929.3,0.1]
[1764074587458,0.6199,2929.9,2929.0,0.4779]
[1764074587459,0.218,2929.8,2929.6,0.1]
[1764074587636,0.72559411,2930.3,2929.6,0.1]
[1764074587844,0.1931,2931.1,2930.2,0.6496]
[1764074588008,0.1931,2931.1,2930.7,0.1]
[1764074588009,0.218,2931.0,2930.7,0.1]
[1764074588347,3.41029569,2932.3,2930.7,0.1]
[1764074588348,0.218,2930.9,2930.7,0.1]
[1764074588555,0.218,2930.8,2930.7,0.1]
[1764074589103,0.218,2930.8,2930.2,0.1803]
[1764074589307,0.218,2930.8,2930.4,0.1]
[1764074590123,0.7139,2930.8,2930.3,0.1]
[1764074590319,0.218,2930.8,2930.3,0.1]
[1764074590540,0.218,2930.8,2930.4,0.1]
[1764074590738,3.63009224,2930.8,2930.4,0.1]
[1764074590943,0.218,2930.8,2930.6,0.1]
[1764074591746,0.218,2930.8,2930.0,0.1]
[1764074591747,0.7404,2930.7,2930.0,0.1]
[1764074592047,0.99119411,2930.7,2929.9,0.1]
[1764074592355,1.22149411,2930.7,2929.9,0.1]
[1764074592563,0.4959,2930.6,2930.0,0.1]
[1764074592716,6.82477392,2930.5,2930.0,0.1]
[1764074593056,6.82477392,2930.5,2929.3,0.72559411]
[1764074593057,0.2447,2930.1,2929.3,0.72559411]
[1764074593261,0.218,2930.0,2929.7,0.1]
[1764074595042,0.1931,2929.9,2929.0,0.4779]
[1764074595261,0.2447,2929.8,2929.1,0.82559411]
[1764074595470,0.2447,2929.8,2929.1,0.1]
[1764074595637,0.4934,2929.7,2928.9,0.1]
[1764074596117,0.4934,2929.7,2928.8,0.1]
[1764074596318,0.4403,2928.9,2928.5,0.001]
[1764074596550,0.4403,2928.9,2928.5,0.101]
[1764074596551,0.218,2928.8,2928.5,0.101]
[1764074597315,0.2447,2928.6,2928.5,0.001]
[1764074597549,0.650204,2928.6,2928.5,0.001]
[1764074597723,0.405504,2928.5,2928.2,0.001]
[1764074597936,0.649204,2928.3,2928.2,0.001]
[1764074598466,1.142604,2928.3,2928.2,0.001]
[1764074599121,5.50114876,2928.3,2928.2,0.001]
[1764074599356,4.60224476,2928.3,2928.2,0.001]
[1764074599539,1.18729411,2928.3,2928.2,0.001]
[1764074599742,4.60224476,2928.3,2928.2,0.001]
[1764074600168,3.90808261,2928.6,2928.2,0.001]
[1764074600339,0.218,2928.5,2928.2,0.001]
[1764074600756,0.91869411,2928.9,2928.4,0.5854]
[1764074601069,0.4506,2929.3,2928.7,0.1]
[1764074601070,0.218,2928.8,2928.7,0.1]
[1764074601766,3.6067493,2929.3,2928.8,0.1]
[1764074601964,0.218,2929.2,2928.8,0.1]
[1764074602495,0.6686,2929.2,2928.5,0.5752]
[1764074602678,0.218,2929.2,2928.5,6.82938939]
[1764074602859,0.218,2929.2,2928.8,0.1]
[1764074603061,0.218,2929.2,2928.8,3.41431371]
[1764074603261,0.1929,2929.5,2929.0,0.1]
[1764074603262,0.218,2929.1,2929.0,0.1]
[1764074603558,0.218,2929.1,2928.7,3.41444003]
[1764074603758,0.218,2929.1,2928.5,0.4752]
[1764074604079,0.218,2929.1,2928.2,0.001]
[1764074604080,0.4506,2929.0,2928.3,0.1]
[1764074604648,0.218,2929.1,2928.6,0.1]
[1764074605076,4.58994611,2929.4,2928.6,0.1]
[1764074605277,0.218,2929.3,2928.7,0.4752]
[1764074605478,3.60654899,2929.5,2928.7,0.4752]
[1764074605479,0.1929,2929.5,2929.0,0.1]
[1764074605678,0.1929,2929.5,2929.2,0.1]
[1764074605679,0.218,2929.4,2929.2,0.1]
[1764074606210,0.1931,2929.9,2929.5,0.1]
[1764074606355,0.218,2929.8,2929.5,0.1]
[1764074607082,0.218,2929.8,2929.7,0.5854]
[1764074607380,0.218,2929.8,2929.7,3.99871876]
[1764074607681,0.218,2929.8,2929.7,4.47391876]
[1764074608081,0.218,2929.8,2929.7,0.1]
[1764074608847,0.218,2929.8,2929.7,3.51331876]
[1764074609053,0.218,2929.8,2929.7,0.5854]
[1764074609277,0.218,2929.8,2929.7,3.99871876]
[1764074610286,0.218,2929.8,2929.7,4.47391876]
[1764074610581,0.218,2929.8,2929.7,0.5854]
[1764074611091,0.218,2929.8,2929.7,4.47391876]
[1764074611257,0.218,2929.8,2929.7,4.37391876]
[1764074611456,0.218,2929.8,2929.7,4.47391876]
[1764074612005,0.218,2929.8,2929.7,4.37391876]
[1764074612158,0.218,2929.8,2929.6,3.5133729]
[1764074612354,0.218,2929.8,2929.7,0.1]
[1764074612576,0.218,2929.8,2929.2,3.5139014]
[1764074612910,0.6686,2929.8,2928.8,0.1]
[1764074613054,0.31770631,2929.7,2929.0,0.1]
[1764074613254,1.04330042,2929.7,2929.3,0.1]
[1764074613498,1.04330042,2929.7,2928.8,0.4752]
[1764074613499,3.41332432,2929.7,2929.0,0.1]
[1764074613881,0.6686,2929.8,2929.0,0.1]
[1764074614060,1.04330574,2929.7,2929.0,0.1]
[1764074614255,4.08182974,2929.8,2929.0,0.1]
[1764074614479,1.0433237,2929.7,2929.0,0.1]
[1764074614679,0.31772959,2929.6,2929.0,0.1]
[1764074614881,0.218,2929.8,2929.0,0.1]
[1764074615093,4.08180339,2929.8,2929.0,0.1]
[1764074615406,0.31771641,2929.7,2929.0,3.51410916]
[1764074615700,0.31771641,2929.7,2929.0,3.51410048]
[1764074615876,0.31771641,2929.7,2929.0,6.92823499]
[1764074616080,0.31771641,2929.7,2929.1,0.1919]
[1764074616316,0.218,2929.8,2929.3,0.1]
[1764074616599,0.218,2929.8,2929.1,0.6671]
[1764074616600,0.002,2930.1,2929.9,0.1]
[1764074616803,0.002,2930.1,2930.0,0.4854]
[1764074617004,0.002,2930.1,2930.0,1.0606]
[1764074617168,0.22,2930.1,2930.0,9.53116624]
[1764074617785,0.002,2930.4,2930.3,0.505504]
[1764074618117,0.22,2930.7,2930.6,0.505504]
[1764074618282,0.1929,2932.2,2930.7,0.405504]
[1764074618481,0.4506,2932.4,2932.0,0.1]
[1764074618482,0.218,2932.1,2932.0,0.1]
[1764074618708,3.4095957,2932.9,2932.4,0.1]
[1764074618709,0.72559411,2932.8,2932.4,0.1]
[1764074618910,0.6435,2933.0,2932.0,0.1803]
[1764074618911,0.218,2932.7,2932.0,0.1803]
[1764074619111,0.218,2932.7,2932.6,0.1]
[1764074619314,0.218,2932.7,2932.5,3.50998579]
[1764074619481,0.218,2932.7,2932.5,0.1]
[1764074619677,0.218,2932.7,2932.6,0.1]
[1764074620111,0.218,2932.7,2932.5,0.1]
[1764074620694,0.218,2932.7,2932.4,3.41017223]
[1764074620695,0.218,2932.7,2932.4,6.82034819]
[1764074620879,0.218,2932.7,2932.6,0.1]
[1764074621587,0.6568,2932.7,2932.3,0.1]
[1764074621916,0.218,2932.7,2932.6,0.4854]
[1764074622118,0.218,2932.7,2932.6,0.5854]
[1764074622291,0.218,2932.7,2932.2,0.4752]
[1764074622493,0.218,2932.7,2932.5,0.1]
[1764074623327,0.218,2932.7,2932.2,0.1]
[1764074623328,0.4607,2932.6,2932.2,0.1]
[1764074623501,0.4287,2932.5,2931.5,0.6671]
[1764074623690,0.4287,2932.5,2931.8,0.1]
[1764074624091,3.60260609,2932.9,2931.8,0.1]
[1764074624092,0.218,2932.4,2932.3,0.1]
[1764074624291,0.1929,2932.9,2932.4,0.1]
[1764074624491,0.4388,2932.5,2931.7,0.1]
[1764074624720,0.4505,2932.4,2931.7,0.1]
[1764074624884,0.4505,2932.7,2932.0,0.1]
[1764074625084,0.4505,2932.7,2931.7,0.4752]
[1764074625321,0.4505,2932.7,2932.3,0.1]
[1764074625511,0.218,2932.6,2932.3,0.1]
[1764074626015,0.218,2932.6,2932.0,0.1]
[1764074626016,0.4388,2932.4,2932.0,0.1]
[1764074626190,7.01210208,2932.9,2932.0,0.1]
[1764074626191,0.6435,2932.9,2932.0,0.1]
[1764074626387,1.39419411,2932.8,2932.0,0.1]
[1764074626788,0.4506,2932.7,2932.0,0.1]
[1764074627183,0.4506,2932.7,2932.1,3.41052487]
[1764074627389,0.1929,2932.9,2932.3,0.1]
[1764074627607,1.39419411,2932.8,2932.3,0.1]
[1764074627799,0.4388,2932.4,2931.5,0.6671]
[1764074627994,0.4388,2932.4,2932.0,0.1]
[1764074628588,0.4505,2932.4,2932.0,0.1]
[1764074628815,0.4389,2932.1,2931.8,0.1]
[1764074629017,0.218,2932.0,2931.6,0.1]
[1764074629186,0.218,2932.0,2931.4,6.82267858]
[1764074629386,0.218,2932.0,2931.9,0.5854]
[1764074629594,0.002,2932.7,2932.2,0.1]
[1764074629801,0.218,2932.6,2931.9,0.99470757]
[1764074629994,0.218,2932.6,2932.5,0.1]
[1764074630291,0.002,2932.7,2932.6,0.1]
[1764074630486,0.002,2932.7,2932.4,0.1]
[1764074630487,0.6868,2932.7,2932.4,0.1]
[1764074630710,0.6868,2932.7,2932.6,0.1]
[1764074630711,0.22,2932.7,2932.6,0.1]
[1764074631388,0.22,2932.7,2932.6,3.98894339]
[1764074631589,0.22,2932.7,2932.6,3.88894339]
[1764074631794,0.22,2932.7,2932.6,3.50994339]
[1764074632310,0.22,2932.7,2932.6,3.98894339]
[1764074632825,0.22,2932.7,2932.2,0.72559411]
[1764074632999,0.22,2932.7,2932.6,0.1]
[1764074633506,0.002,2933.0,2932.7,0.405504]
[1764074633705,0.002,2933.3,2933.2,5.15580447]
[1764074633896,0.002,2933.3,2933.2,0.1]
[1764074634826,0.002,2933.3,2932.8,0.1]
[1764074634827,0.3961,2933.3,2932.8,0.1]
[1764074635397,0.3961,2933.3,2932.7,4.13537407]
[1764074635601,0.002,2933.3,2932.7,4.13537407]
[1764074635919,0.002,2933.3,2933.1,0.1]
[1764074636128,0.002,2933.3,2933.2,0.1]
[1764074636342,0.002,2933.3,2933.2,0.579]
[1764074636641,0.22,2933.3,2933.2,0.1]
[1764074636799,0.22,2933.3,2933.0,0.1]
[1764074636997,0.22,2933.3,2932.7,7.54520119]
[1764074636998,0.002,2933.3,2933.2,0.579]
[1764074637194,0.22,2933.3,2933.2,0.1]
[1764074637439,0.002,2933.3,2933.2,0.1]
[1764074637740,0.002,2933.3,2933.2,1.0311]
[1764074637895,0.22,2933.3,2933.2,1.0311]
[1764074638803,0.22,2933.3,2933.2,0.579]
[1764074639639,0.22,2933.3,2933.2,0.1]
[1764074639843,0.22,2933.3,2932.8,1.20899411]
[1764074639844,0.002,2933.3,2933.0,0.1]
[1764074640061,0.002,2933.3,2932.6,0.72559411]
[1764074640062,0.22,2933.3,2933.2,0.1]
[1764074640264,0.0012,2933.3,2933.2,0.4847]
[1764074640559,0.1941,2934.9,2933.3,0.405504]
[1764074640783,1.229,2935.7,2934.2,3.92470636]
[1764074640916,3.40541051,2936.6,2933.4,0.4834]
[1764074640917,3.5589484,2936.4,2935.6,0.1405]
[1764074641117,0.218,2936.3,2936.0,0.1]
[1764074641453,3.40576255,2936.2,2935.2,0.1]
[1764074641749,0.6856,2936.2,2935.5,0.1]
[1764074641934,0.218,2936.2,2935.1,1.20899411]
[1764074642116,0.218,2936.2,2935.5,0.1]
[1764074642117,0.4676,2936.1,2935.5,0.1]
[1764074642316,0.4676,2936.1,2935.2,0.1]
[1764074642516,0.4676,2936.1,2934.8,0.1671]
[1764074642517,0.4676,2936.1,2934.9,0.1]
[1764074642751,6.81134347,2936.3,2934.9,0.4834]
[1764074642918,6.81134347,2936.3,2934.8,6.98186493]
[1764074642919,0.4676,2936.2,2935.2,0.1]
[1764074643236,0.4676,2936.2,2934.5,0.1]
[1764074643237,0.6256,2934.9,2934.5,0.1]
[1764074643440,0.218,2934.8,2934.5,0.1]
[1764074643638,0.219,2934.7,2934.1,6.81640024]
[1764074643839,0.219,2934.7,2934.6,0.1]
[1764074644146,0.4676,2935.6,2934.6,0.5847]
[1764074644316,3.55899058,2936.4,2935.6,0.1]
[1764074644317,0.4676,2936.3,2935.6,0.1]
[1764074644519,0.219,2936.2,2935.9,0.1]
[1764074644849,0.219,2936.2,2935.2,0.72559411]
[1764074644850,0.3981,2936.0,2935.2,0.1908]
[1764074645015,0.3981,2936.0,2935.5,0.1]
[1764074645351,3.40622658,2935.8,2935.2,0.1]
[1764074645745,6.81245316,2935.8,2935.4,0.1]
[1764074645937,0.4676,2935.7,2935.0,0.1]
[1764074646130,0.4676,2935.7,2934.5,0.4834]
[1764074646445,0.219,2935.6,2935.4,0.1]
[1764074646824,0.219,2935.5,2935.2,0.1227]
[1764074647025,0.219,2935.5,2935.1,0.1]
[1764074647229,0.6866,2935.5,2935.1,0.1]
[1764074647448,0.002,2935.3,2935.1,0.1]
[1764074647658,0.002,2935.3,2934.9,0.1908]
[1764074647659,0.002,2935.3,2935.2,0.1]
[1764074647830,0.221,2935.3,2935.2,0.5847]
[1764074648357,0.221,2935.3,2935.2,0.9681]
[1764074648670,0.002,2935.3,2935.2,1.79369411]
[1764074649471,0.002,2935.3,2935.2,5.60612097]
[1764074649670,0.15340138,2936.4,2935.2,5.60612097]
[1764074649671,0.094,2935.5,2935.4,0.4847]
[1764074649868,0.094,2935.5,2935.4,5.23500047]
[1764074650547,0.094,2935.5,2935.4,5.71840047]
[1764074651447,0.094,2935.5,2935.4,5.20038485]
[1764074651784,0.15340138,2936.4,2935.5,0.72559411]
[1764074651962,0.15340138,2936.4,2936.3,0.1]
[1764074652175,0.37240138,2936.4,2936.3,0.1]
[1764074652343,0.37240138,2936.4,2936.2,0.1]
[1764074653474,0.37240138,2936.4,2936.3,0.1]
[1764074654064,1.23740138,2936.4,2935.5,0.1908]
[1764074654230,0.4669,2936.3,2935.8,0.1]
[1764074654667,0.6012,2935.9,2935.7,0.1]
[1764074654936,0.6012,2935.9,2935.5,0.1]
[1764074655149,0.4636,2935.8,2935.5,0.1]
[1764074655367,0.1355,2935.9,2935.5,0.1]
[1764074655368,0.219,2935.7,2935.5,0.1]
[1764074655570,0.219,2935.7,2935.6,0.1]
[1764074655777,0.219,2935.7,2935.1,0.1]
[1764074655778,4.5546426,2935.7,2935.1,0.1]
[1764074656139,4.5546426,2935.7,2934.4,3.40781478]
[1764074656140,0.4657,2935.2,2934.4,3.40777918]
[1764074656536,0.4657,2935.2,2935.1,0.1]
[1764074656731,0.4657,2935.2,2934.2,0.1908]
[1764074656732,0.9292,2935.2,2934.2,0.1908]
[1764074656932,0.9292,2935.2,2933.7,0.1908]
[1764074656933,0.1997,2934.3,2933.7,0.1908]
[1764074657167,0.219,2934.2,2933.7,0.1]
[1764074657382,0.1919,2933.8,2933.5,0.1]
[1764074657668,3.60046606,2933.8,2932.9,3.40955552]
[1764074657879,3.60046606,2933.8,2933.1,0.1]
[1764074657880,0.4676,2933.7,2933.1,0.1]
[1764074658544,1.19319411,2933.7,2932.4,0.1908]
[1764074658747,1.19319411,2933.7,2931.2,3.41147109]
[1764074658748,0.405504,2933.5,2931.4,3.41133929]
[1764074658966,0.31553906,2933.6,2932.1,0.1]
[1764074658967,0.53453906,2933.4,2932.1,0.1]
[1764074659163,0.31553906,2933.3,2932.1,0.1]
[1764074659366,0.78313906,2933.3,2932.1,0.1183]
[1764074659687,0.219,2933.2,2932.8,0.1]
[1764074659866,0.1919,2933.8,2932.9,0.03409594]
[1764074660068,0.1997,2934.3,2933.2,4.11360636]
[1764074660264,0.1997,2934.3,2932.5,10.23017901]
[1764074660265,0.1832,2933.9,2932.9,0.72559411]
[1764074660469,0.1832,2933.9,2933.4,0.1]
[1764074660675,0.1832,2933.9,2933.7,0.1]
[1764074661387,0.6783,2934.2,2933.7,0.1]
[1764074661388,0.219,2933.8,2933.7,0.1]
[1764074662164,0.1832,2934.6,2933.7,6.81732964]
[1764074662374,0.219,2934.5,2934.3,0.1]
[1764074662605,0.219,2934.5,2933.2,4.11360636]
[1764074662606,0.6783,2934.5,2934.0,0.1]
[1764074662887,0.6783,2934.5,2933.2,0.6703]
[1764074662888,0.4713,2934.1,2933.3,3.4090305]
[1764074663090,0.1832,2934.6,2933.3,3.4090305]
[1764074663091,0.219,2934.0,2933.9,0.1]
[1764074663790,1.1496,2934.0,2932.9,0.1]
[1764074663961,0.0435,2933.5,2932.9,0.1]
[1764074664157,0.0427,2933.5,2933.3,0.001]
[1764074664582,0.4593,2933.4,2933.3,0.001]
[1764074664980,0.6783,2933.4,2933.3,0.001]
[1764074665370,0.99456792,2933.4,2933.3,0.001]
[1764074665572,1.40007192,2933.4,2933.3,0.001]
[1764074665877,1.40007192,2933.4,2933.0,0.001]
[1764074665878,6.81825928,2933.3,2933.0,0.001]
[1764074666079,0.53526792,2933.2,2933.0,0.001]
[1764074666268,0.6783,2933.2,2933.0,0.001]
[1764074666476,0.31613447,2933.1,2933.0,0.001]
[1764074666673,0.77543447,2933.1,2933.0,0.001]
[1764074666874,3.81422923,2933.7,2933.0,0.001]
[1764074666875,0.1832,2933.9,2933.0,0.001]
[1764074667093,0.4593,2933.8,2933.0,0.001]
[1764074667308,0.53513589,2933.7,2933.0,0.001]
[1764074667516,0.77543589,2933.6,2933.0,0.001]
[1764074667678,0.1832,2933.9,2933.1,0.1]
[1764074667876,0.6783,2933.8,2933.4,0.1]
[1764074668088,0.4593,2933.8,2933.4,0.1]
[1764074668291,0.219,2933.7,2933.4,0.1]
[1764074668468,0.219,2933.6,2933.1,0.1889]
[1764074668665,0.4593,2934.3,2933.7,0.1]
[1764074668901,0.219,2934.2,2933.7,0.1]
[1764074669067,0.5103,2933.8,2933.0,0.001]
[1764074669270,0.5103,2933.8,2933.2,0.1]
[1764074669467,0.9696,2933.8,2933.0,0.001]
[1764074669822,6.81732964,2933.7,2933.0,0.001]
[1764074669983,0.1847,2933.1,2933.0,0.001]
[1764074670371,0.4593,2933.6,2933.0,0.001]
[1764074670598,0.4713,2933.1,2933.0,0.001]
[1764074670797,0.9306,2933.1,2933.0,0.001]
[1764074671307,1.24660372,2933.1,2933.0,0.001]
[1764074671509,1.65210772,2933.1,2933.0,0.001]
[1764074671668,1.65210772,2933.1,2931.2,0.4814]
[1764074671669,5.78706393,2933.1,2931.2,0.4814]
[1764074671868,1.90640183,2933.0,2931.6,0.1]